[Event "FAI-ch Candidates 2022"]
[Site "Eidi"]
[Date "2022.04.10"]
[Round "2.4"]
[White "Hansen, Herluf"]
[Black "Danielsen, Andrias"]
[Result "1/2-1/2"]
[ECO "D30"]
[WhiteElo "1982"]
[BlackElo "1893"]
[Annotator "RC"]
[PlyCount "109"]
[EventDate "2022.04.10"]
[EventType "tourn"]
[EventCountry "FAI"]
[SourceTitle "playchess.com"]
[Source "ChessBase"]
[SourceQuality "1"]
[TimeControl "40/5400+30:1800+30"]

1. d4 {[%emt 0:09:25]} d5 {[%emt 0:01:47]} 2. Nf3 {[%emt 0:01:00]} Nf6 {[%emt 0:01:30]} 3. c4 {[%emt 0:00:35]} c6 {[%emt 0:01:17]} 4. Qc2 {[%emt 0:05:25]} e6 {[%emt 0:15:59]} 5. g3 {[%emt 0:02:27]} Be7 {[%emt 0:12:41]} 6. Bg2 {[%emt 0:00:29]} O-O {[%emt 0:02:53]} 7. O-O {[%emt 0:00:34]} dxc4 {[%emt 0:07:05]} 8. Qxc4 {[%emt 0:00:58]} b5 {[%emt 0:01:26]} 9. Qc2 {[%emt 0:01:46]} Bb7 {[%emt 0:00:49]} 10. a4 {[%emt 0:05:23]} Nbd7 {[%emt 0:07:28]} 11. Nbd2 {[%emt 0:09:47]} Rc8 {[%emt 0:10:38]} 12. Nb3 {[%emt 0:13:34]} c5 {[%emt 0:05:03]} 13. axb5 {[%emt 0:01:15]} cxd4 {[%emt 0:00:17]} 14. Qd1 {[%emt 0:03:42]} e5 {[%emt 0:00:44]} 15. Bd2 {[%emt 0:06:28]} Qb6 {[%emt 0:00:49]} 16. Na5 {[%emt 0:00:35]} Bxf3 {[%emt 0:04:58]} 17. exf3 {[%emt 0:05:36]} Qxb5 {[%emt 0:00:29]} 18. b3 {[%emt 0:02:26]} Rb8 {[%emt 0:05:46]} 19. Re1 {[%emt 0:01:16]} Rfe8 {[%emt 0:02:32]} 20. f4 {[%emt 0:03:35]} Rbc8 {[%emt 0:05:55]} 21. fxe5 {[%emt 0:05:14]} Nxe5 {[%emt 0:00:25]} 22. Bf4 {[%emt 0:02:00]} Bb4 {[%emt 0:01:57]} 23. Rxe5 {[%emt 0:02:35]} Rxe5 {[%emt 0:00:18]} 24. Bxe5 {[%emt 0:01:19]} Qxe5 {[%emt 0:00:11]} 25. Nc6 {[%emt 0:00:51]} Qd6 {[%emt 0:03:14]} 26. Rc1 {[%emt 0:03:39]} Re8 {[%emt 0:00:33]} 27. Qxd4 {[%emt 0:02:14]} Qxd4 {[%emt 0:00:40]} 28. Nxd4 {[%emt 0:00:03]} Re1+ {[%emt 0:00:55]} 29. Rxe1 {[%emt 0:00:41]} Bxe1 {[%emt 0:00:10]} 30. Nc6 {[%emt 0:00:28]} a5 {[%emt 0:00:59]} 31. Kf1 {[%emt 0:00:15]} Bc3 {[%emt 0:00:15]} 32. Ke2 {[%emt 0:00:12]} Kf8 {[%emt 0:02:12]} 33. Kd3 {[%emt 0:00:40]} Be1 {[%emt 0:01:01]} 34. f4 {[%emt 0:00:32]} Ng4 {[%emt 0:01:57]} 35. Ke2 {[%emt 0:02:47]} Bc3 {[%emt 0:00:12]} 36. h3 {[%emt 0:00:54]} Nf6 {[%emt 0:00:20]} 37. Bf3 {[%emt 0:00:37]} Ke8 {[%emt 0:00:36]} 38. Kd3 {[%emt 0:00:09]} Be1 {[%emt 0:00:14]} 39. g4 {[%emt 0:00:02]} Kd7 {[%emt 0:00:35]} 40. Kc4 {[%emt 0:00:00]} Ne8 {[%emt 0:00:00]} 41. Kb5 {[%emt 0:15:53]} Nc7+ {[%emt 0:20:24]} 42. Kb6 {[%emt 0:03:16]} Ne6 {[%emt 0:00:18]} 43. f5 {[%emt 0:01:07]} Nf4 {[%emt 0:05:30]} 44. Nxa5 {[%emt 0:00:23]} Nxh3 {[%emt 0:00:39]} 45. Nc6 {[%emt 0:00:31]} g6 {[%emt 0:01:34]} 46. b4 {[%emt 0:04:47]} gxf5 {[%emt 0:00:37]} 47. gxf5 {[%emt 0:00:03]} Ng5 {[%emt 0:02:00]} 48. Bh1 {[%emt 0:00:34]} Kd6 {[%emt 0:02:37]} 49. b5 {[%emt 0:00:19]} f6 {[%emt 0:01:37]} 50. Kb7 {[%emt 0:00:22]} Nf7 {[%emt 0:00:58]} 51. b6 {[%emt 0:00:20]} Bf2 {[%emt 0:00:50]} 52. Ka6 {[%emt 0:00:26]} Bxb6 {[%emt 0:00:30]} 53. Kxb6 {[%emt 0:00:03]} h5 {[%emt 0:00:34]} 54. Kb5 {[%emt 0:00:29]} Nh6 {[%emt 0:00:12]} 55. Be4 {[%emt 0:00:47]} 1/2-1/2

[Event "FAI-ch Candidates 2022"]
[Site "Eidi"]
[Date "2022.04.11"]
[Round "3.1"]
[White "Danielsen, Andrias"]
[Black "Gregersen, Hedin"]
[Result "0-1"]
[ECO "E63"]
[WhiteElo "1893"]
[BlackElo "1859"]
[Annotator "NA RC"]
[PlyCount "50"]
[EventDate "2022.04.10"]
[EventType "tourn"]
[EventCountry "FAI"]
[SourceTitle "playchess.com"]
[Source "ChessBase"]
[SourceQuality "1"]
[TimeControl "40/5400+30:1800+30"]

1. d4 {[%emt 0:00:03]} Nf6 {[%emt 0:00:07]} 2. c4 {[%emt 0:00:17]} g6 {[%emt 0:00:07]} 3. Nc3 {[%emt 0:00:22]} Bg7 {[%emt 0:00:07]} 4. g3 {[%emt 0:00:11]} O-O {[%emt 0:00:15]} 5. Bg2 {[%emt 0:00:13]} d6 {[%emt 0:00:33]} 6. Nf3 {[%emt 0:00:33]} Nc6 {[%emt 0:00:28]} 7. O-O {[%emt 0:00:32]} a6 {[%emt 0:01:09]} 8. h3 {[%emt 0:02:57]} Rb8 {[%emt 0:00:22]} 9. e4 {[%emt 0:26:07]} Na5 {[%emt 0:00:49]} 10. Qe2 {[%emt 0:02:34]} b5 {[%emt 0:29:22]} 11. cxb5 {[%emt 0:23:08]} axb5 {[%emt 0:00:00]} 12. e5 {[%emt 0:01:57]} Ne8 {[%emt 0:00:00]} 13. Rd1 {[%emt 0:00:38]} Ba6 {[%emt 0:00:00]} 14. e6 {[%emt 0:11:17]} f6 {[%emt 0:05:48]} 15. Nd5 {[%emt 0:03:02]} c6 {[%emt 0:06:00]} 16. Nf4 $14 {[%emt 0:00:09]} Nc7 {[%emt 0:09:23]} 17. Nh4 {[%emt 0:03:21]} b4 {[%emt 0:08:55]} 18. Qg4 {[%emt 0:00:15]} f5 {[%emt 0:02:11]} 19. Qg5 {[%emt 0:10:47]} Rf6 {[%emt 0:05:31]} 20. Nhxg6 {[%emt 0:02:08]} hxg6 {[%emt 0:00:56]} 21. d5 {[%emt 0:06:07]} cxd5 {[%emt 0:01:22]} 22. Bxd5 {[%emt 0:00:09]} Bc4 {[%emt 0:01:04]} 23. Bxc4 {[%emt 0:02:30]} Nxc4 {[%emt 0:00:09]} 24. Re1 {[%emt 0:01:09]} Ne5 {[%emt 0:00:22]} 25. Rxe5 {[%emt 0:00:44]} dxe5 {[%emt 0:00:06]} 0-1

[Event "FAI-ch Candidates 2022"]
[Site "Eidi"]
[Date "2022.04.11"]
[Round "3.2"]
[White "Skaale, Janus"]
[Black "Hansen, Herluf"]
[Result "0-1"]
[ECO "B46"]
[WhiteElo "1883"]
[BlackElo "1982"]
[Annotator "RC"]
[PlyCount "138"]
[EventDate "2022.04.10"]
[EventType "tourn"]
[EventCountry "FAI"]
[SourceTitle "playchess.com"]
[Source "ChessBase"]
[SourceQuality "1"]
[TimeControl "40/5400+30:1800+30"]

1. e4 {[%emt 0:00:07]} c5 {[%emt 0:00:46]} 2. Nf3 {[%emt 0:00:15]} e6 {[%emt 0:00:26]} 3. d4 {[%emt 0:00:45]} cxd4 {[%emt 0:00:13]} 4. Nxd4 {[%emt 0:00:13]} a6 {[%emt 0:00:46]} 5. Nc3 {[%emt 0:00:52]} Qc7 {[%emt 0:01:14]} 6. Bd3 {[%emt 0:01:05]} Nf6 {[%emt 0:03:26]} 7. O-O {[%emt 0:00:37]} Nc6 {[%emt 0:02:01]} 8. Nxc6 {[%emt 0:00:26]} bxc6 {[%emt 0:00:31]} 9. f4 {[%emt 0:00:41]} d6 {[%emt 0:02:52]} 10. Kh1 {[%emt 0:04:30]} Be7 {[%emt 0:02:20]} 11. Qf3 {[%emt 0:09:06]} O-O {[%emt 0:00:52]} 12. Bd2 {[%emt 0:00:38]} e5 {[%emt 0:10:46]} 13. f5 {[%emt 0:01:21]} Rb8 {[%emt 0:00:25]} 14. Qg3 {[%emt 0:14:06]} Rd8 {[%emt 0:00:59]} 15. Bg5 {[%emt 0:09:59]} d5 {[%emt 0:01:59]} 16. Rf3 {[%emt 0:05:31]} Rb4 {[%emt 0:03:30]} 17. Re1 {[%emt 0:07:14]} Rd4 {[%emt 0:18:36]} 18. exd5 {[%emt 0:06:47]} Rg4 {[%emt 0:11:36]} 19. Qxe5 {[%emt 0:01:24]} Bd6 {[%emt 0:00:14]} 20. Qe3 {[%emt 0:02:29]} Rxg5 {[%emt 0:07:51]} 21. Qxg5 {[%emt 0:00:49]} cxd5 {[%emt 0:00:47]} 22. Qh4 {[%emt 0:10:46]} Bb7 {[%emt 0:01:03]} 23. Rff1 {[%emt 0:03:38]} Qb6 {[%emt 0:09:45]} 24. Na4 {[%emt 0:01:49]} Qc6 {[%emt 0:00:21]} 25. Qd4 {[%emt 0:02:47]} Qc8 {[%emt 0:01:31]} 26. Nc3 {[%emt 0:07:20]} Qc7 {[%emt 0:00:47]} 27. Qh4 {[%emt 0:02:22]} Qb6 {[%emt 0:06:03]} 28. Nd1 {[%emt 0:01:36]} Qa5 {[%emt 0:02:04]} 29. a3 {[%emt 0:01:22]} h6 {[%emt 0:00:50]} 30. Ne3 {[%emt 0:02:51]} Be5 {[%emt 0:02:04]} 31. c3 {[%emt 0:01:24]} Qc7 {[%emt 0:00:47]} 32. Ng4 {[%emt 0:00:43]} Nxg4 {[%emt 0:00:50]} 33. Qxg4 {[%emt 0:00:02]} Bf6 {[%emt 0:00:02]} 34. Bb1 {[%emt 0:01:20]} Bc6 {[%emt 0:01:14]} 35. Rd1 {[%emt 0:00:31]} Qb7 {[%emt 0:01:01]} 36. Rd2 {[%emt 0:00:33]} a5 {[%emt 0:00:18]} 37. Rfd1 {[%emt 0:00:13]} Qb3 {[%emt 0:00:36]} 38. Qf3 {[%emt 0:00:33]} Re8 {[%emt 0:01:42]} 39. Qf2 {[%emt 0:00:38]} a4 {[%emt 0:00:54]} 40. Re1 {[%emt 0:00:00]} Rd8 {[%emt 0:00:00]} 41. Qc5 {[%emt 0:19:34]} Qb7 {[%emt 0:17:06]} 42. Qb4 {[%emt 0:04:00]} Qd7 {[%emt 0:01:50]} 43. Red1 {[%emt 0:04:51]} Qe8 {[%emt 0:00:23]} 44. Qg4 {[%emt 0:00:45]} Qe7 {[%emt 0:01:36]} 45. Bd3 {[%emt 0:01:29]} Qb7 {[%emt 0:00:36]} 46. Qb4 {[%emt 0:01:43]} Qd7 {[%emt 0:01:02]} 47. Bc2 {[%emt 0:00:48]} Qa7 {[%emt 0:00:19]} 48. Qg4 {[%emt 0:00:42]} Qa8 {[%emt 0:01:17]} 49. Bd3 {[%emt 0:00:36]} Re8 {[%emt 0:01:14]} 50. Re2 {[%emt 0:01:00]} Rd8 {[%emt 0:00:19]} 51. Rde1 {[%emt 0:00:36]} Rb8 {[%emt 0:01:50]} 52. h4 {[%emt 0:00:30]} Qa7 {[%emt 0:00:25]} 53. Kh2 {[%emt 0:00:28]} Qc5 {[%emt 0:00:35]} 54. g3 {[%emt 0:00:33]} Kf8 {[%emt 0:00:40]} 55. Kh3 {[%emt 0:00:20]} Qd6 {[%emt 0:03:00]} 56. Qf4 {[%emt 0:00:38]} Qd8 {[%emt 0:00:13]} 57. Qf2 {[%emt 0:00:30]} Kg8 {[%emt 0:01:11]} 58. Qc5 {[%emt 0:00:24]} Qd7 {[%emt 0:00:31]} 59. Qa5 {[%emt 0:00:31]} d4 {[%emt 0:04:44]} 60. c4 {[%emt 0:00:35]} Qc8 {[%emt 0:00:41]} 61. Qa7 {[%emt 0:00:31]} Rb3 {[%emt 0:01:15]} 62. Be4 {[%emt 0:00:30]} Bxe4 {[%emt 0:00:37]} 63. Rxe4 {[%emt 0:00:02]} Qxf5+ {[%emt 0:00:11]} 64. Kg2 {[%emt 0:00:59]} Qf3+ {[%emt 0:00:22]} 65. Kg1 {[%emt 0:00:29]} Qxg3+ {[%emt 0:00:21]} 66. Kf1 {[%emt 0:00:14]} Rf3+ {[%emt 0:00:57]} 67. Ke2 {[%emt 0:00:02]} Rf2+ {[%emt 0:00:12]} 68. Kd1 {[%emt 0:00:07]} Qd3+ {[%emt 0:00:07]} 69. Kc1 {[%emt 0:00:04]} Qc2# {[%emt 0:00:09]} 0-1

[Event "FAI-ch Candidates 2022"]
[Site "Eidi"]
[Date "2022.04.11"]
[Round "3.3"]
[White "Hansen Eliasen, Bogi"]
[Black "Jacobsen, Heidrikur T."]
[Result "0-1"]
[ECO "E70"]
[WhiteElo "1841"]
[BlackElo "1853"]
[Annotator "NA RC"]
[PlyCount "70"]
[EventDate "2022.04.10"]
[EventType "tourn"]
[EventCountry "FAI"]
[SourceTitle "playchess.com"]
[Source "ChessBase"]
[SourceQuality "1"]
[TimeControl "40/5400+30:1800+30"]

1. d4 {[%emt 0:00:07]} Nf6 {[%emt 0:00:07]} 2. c4 {[%emt 0:00:10]} g6 {[%emt 0:00:44]} 3. Nc3 {[%emt 0:00:10]} Bg7 {[%emt 0:00:05]} 4. e4 {[%emt 0:00:10]} d6 {[%emt 0:00:06]} 5. Bd3 {[%emt 0:00:21]} O-O {[%emt 0:00:47]} 6. Nge2 {[%emt 0:00:07]} e5 {[%emt 0:00:16]} 7. d5 {[%emt 0:00:12]} a5 {[%emt 0:00:07]} 8. O-O {[%emt 0:01:39]} Na6 {[%emt 0:00:09]} 9. a3 {[%emt 0:00:53]} Nc5 {[%emt 0:00:24]} 10. Bc2 {[%emt 0:00:23]} a4 {[%emt 0:07:21]} 11. f3 {[%emt 0:08:42]} Bd7 {[%emt 0:04:28]} 12. Be3 {[%emt 0:03:27]} Qe8 {[%emt 0:01:03]} 13. Bxc5 {[%emt 0:04:59]} dxc5 {[%emt 0:00:06]} 14. Bd3 {[%emt 0:08:47]} Bh6 {[%emt 0:02:58]} 15. b3 {[%emt 0:12:05]} Be3+ {[%emt 0:03:32]} 16. Kh1 {[%emt 0:02:04]} Nh5 {[%emt 0:00:22]} 17. b4 {[%emt 0:05:57]} b6 {[%emt 0:00:54]} 18. Qe1 {[%emt 0:14:26]} f5 {[%emt 0:04:52]} 19. exf5 {[%emt 0:06:35]} gxf5 {[%emt 0:00:53]} 20. Ng3 {[%emt 0:04:21]} f4 {[%emt 0:01:21]} 21. Nxh5 {[%emt 0:04:41]} Qxh5 {[%emt 0:00:11]} 22. Ra2 {[%emt 0:02:17]} Rf6 {[%emt 0:03:01]} 23. g4 {[%emt 0:02:37]} Qh3 {[%emt 0:02:18]} 24. Qe2 {[%emt 0:00:43]} h5 {[%emt 0:06:49]} 25. Ne4 {[%emt 0:04:12]} Raf8 {[%emt 0:05:11]} 26. Nxf6+ {[%emt 0:00:33]} Rxf6 {[%emt 0:00:07]} 27. g5 {[%emt 0:00:24]} Rd6 {[%emt 0:01:10]} 28. bxc5 {[%emt 0:01:17]} bxc5 {[%emt 0:00:16]} 29. Rb2 {[%emt 0:03:50]} Bf5 {[%emt 0:06:04]} 30. Rb7 {[%emt 0:02:50]} Rd7 {[%emt 0:01:22]} 31. Bxf5 {[%emt 0:02:11]} Qxf5 {[%emt 0:00:10]} 32. Ra7 {[%emt 0:00:34]} Rg7 {[%emt 0:00:25]} 33. Qd1 {[%emt 0:01:46]} Qxg5 {[%emt 0:00:15]} 34. Ra8+ {[%emt 0:03:19]} Kf7 {[%emt 0:00:18]} 35. Qe2 {[%emt 0:00:33]} Qg1+ {[%emt 0:00:13]} 0-1

[Event "FAI-ch Candidates 2022"]
[Site "Eidi"]
[Date "2022.04.11"]
[Round "3.4"]
[White "Nielsen, Jon I Horni"]
[Black "Berg, Margar M."]
[Result "1/2-1/2"]
[ECO "B51"]
[WhiteElo "1923"]
[BlackElo "2005"]
[Annotator "RC"]
[PlyCount "171"]
[EventDate "2022.04.10"]
[EventType "tourn"]
[EventCountry "FAI"]
[SourceTitle "playchess.com"]
[Source "ChessBase"]
[SourceQuality "1"]
[TimeControl "40/5400+30:1800+30"]

1. e4 {[%emt 0:00:03]} c5 {[%emt 0:00:13]} 2. Nf3 {[%emt 0:00:07]} d6 {[%emt 0:00:32]} 3. Bb5+ {[%emt 0:00:15]} Nd7 {[%emt 0:00:41]} 4. O-O {[%emt 0:00:11]} Ngf6 {[%emt 0:00:59]} 5. Re1 {[%emt 0:00:16]} e6 {[%emt 0:00:48]} 6. c3 {[%emt 0:00:56]} Be7 {[%emt 0:04:15]} 7. d4 {[%emt 0:05:21]} cxd4 {[%emt 0:00:49]} 8. cxd4 {[%emt 0:04:29]} O-O {[%emt 0:00:27]} 9. Nc3 {[%emt 0:01:13]} a6 {[%emt 0:03:27]} 10. Bd3 {[%emt 0:02:54]} h6 {[%emt 0:15:26]} 11. h3 {[%emt 0:05:04]} b5 {[%emt 0:07:29]} 12. Qb3 {[%emt 0:05:34]} Nh7 {[%emt 0:07:07]} 13. Bf4 {[%emt 0:05:26]} Ng5 {[%emt 0:02:44]} 14. Nxg5 {[%emt 0:01:15]} hxg5 {[%emt 0:00:12]} 15. Bg3 {[%emt 0:02:12]} Qb6 {[%emt 0:00:53]} 16. Red1 {[%emt 0:08:03]} Nf6 {[%emt 0:01:36]} 17. e5 {[%emt 0:16:28]} Nh5 {[%emt 0:04:49]} 18. Bh2 {[%emt 0:04:41]} Nf4 {[%emt 0:01:36]} 19. Bxf4 {[%emt 0:02:46]} gxf4 {[%emt 0:00:14]} 20. Be4 {[%emt 0:02:08]} Ra7 {[%emt 0:02:40]} 21. Ne2 {[%emt 0:00:30]} f5 {[%emt 0:06:05]} 22. Bc2 {[%emt 0:09:56]} g5 {[%emt 0:04:00]} 23. Rac1 {[%emt 0:06:42]} Bd7 {[%emt 0:10:33]} 24. Qf3 {[%emt 0:01:43]} Be8 {[%emt 0:01:19]} 25. exd6 {[%emt 0:06:03]} Bxd6 {[%emt 0:02:49]} 26. Bb3 {[%emt 0:00:16]} Bb8 {[%emt 0:11:34]} 27. d5 {[%emt 0:01:47]} e5 {[%emt 0:06:49]} 28. d6+ {[%emt 0:00:34]} Kg7 {[%emt 0:02:26]} 29. Qd5 {[%emt 0:00:23]} Qd8 {[%emt 0:01:50]} 30. Qxe5+ {[%emt 0:04:03]} Qf6 {[%emt 0:00:02]} 31. Qc5 {[%emt 0:00:53]} Rd7 {[%emt 0:00:48]} 32. Qb6 {[%emt 0:01:41]} Bh5 {[%emt 0:00:39]} 33. Qc6 {[%emt 0:02:13]} Rfd8 {[%emt 0:00:06]} 34. f3 {[%emt 0:00:36]} Bg6 {[%emt 0:00:49]} 35. Rd2 {[%emt 0:00:39]} Ba7+ {[%emt 0:00:10]} 36. Kf1 {[%emt 0:00:37]} Be3 {[%emt 0:00:06]} 37. Rcd1 {[%emt 0:00:21]} Bxd2 {[%emt 0:00:03]} 38. Rxd2 {[%emt 0:00:01]} Rxd6 {[%emt 0:00:37]} 39. Qc7+ {[%emt 0:01:03]} R8d7 {[%emt 0:00:47]} 40. Qxd7+ {[%emt 0:00:00]} Rxd7 {[%emt 0:00:00]} 41. Rxd7+ {[%emt 0:15:24]} Kh8 {[%emt 0:17:32]} 42. Nc3 {[%emt 0:02:18]} Be8 {[%emt 0:07:00]} 43. Nd5 {[%emt 0:03:35]} Qxb2 {[%emt 0:01:56]} 44. Rd8 {[%emt 0:00:40]} Qc1+ {[%emt 0:01:09]} 45. Ke2 {[%emt 0:01:32]} Qb2+ {[%emt 0:01:19]} 46. Kf1 {[%emt 0:01:34]} Qe5 {[%emt 0:01:55]} 47. Ra8 {[%emt 0:01:24]} b4 {[%emt 0:00:57]} 48. Kg1 {[%emt 0:01:09]} g4 {[%emt 0:01:04]} 49. hxg4 {[%emt 0:01:28]} fxg4 {[%emt 0:00:08]} 50. fxg4 {[%emt 0:00:31]} Kg7 {[%emt 0:00:54]} 51. Ra7+ {[%emt 0:02:02]} Kh6 {[%emt 0:00:26]} 52. Rxa6+ {[%emt 0:00:21]} Kg5 {[%emt 0:00:12]} 53. Rf6 {[%emt 0:01:00]} Qe1+ {[%emt 0:03:19]} 54. Kh2 {[%emt 0:00:03]} Kh4 {[%emt 0:00:35]} 55. Rxf4 {[%emt 0:01:27]} Bc6 {[%emt 0:00:28]} 56. Rf3 {[%emt 0:03:56]} Bxd5 {[%emt 0:00:32]} 57. Bxd5 {[%emt 0:00:32]} Qe5+ {[%emt 0:00:30]} 58. g3+ {[%emt 0:00:01]} Kxg4 {[%emt 0:00:11]} 59. Rf4+ {[%emt 0:00:40]} Kg5 {[%emt 0:00:12]} 60. Bg2 {[%emt 0:00:47]} Qe1 {[%emt 0:00:53]} 61. Re4 {[%emt 0:00:33]} Qd2 {[%emt 0:00:15]} 62. Rh4 {[%emt 0:00:26]} Kf6 {[%emt 0:00:25]} 63. Re4 {[%emt 0:00:20]} Kg7 {[%emt 0:01:04]} 64. Rf4 {[%emt 0:00:18]} Qb2 {[%emt 0:00:31]} 65. Kh1 {[%emt 0:00:54]} Qd2 {[%emt 0:00:30]} 66. Kh2 {[%emt 0:00:20]} Qe1 {[%emt 0:00:07]} 67. Re4 {[%emt 0:00:09]} Qd2 {[%emt 0:00:56]} 68. Rf4 {[%emt 0:00:10]} Kh6 {[%emt 0:00:15]} 69. Re4 {[%emt 0:00:29]} Kg5 {[%emt 0:00:13]} 70. Re5+ {[%emt 0:00:43]} Kf6 {[%emt 0:00:21]} 71. Re4 {[%emt 0:00:01]} Kf5 {[%emt 0:00:09]} 72. Kh1 {[%emt 0:01:04]} Qxa2 {[%emt 0:01:04]} 73. Rxb4 {[%emt 0:00:35]} Qa1+ {[%emt 0:00:57]} 74. Kh2 {[%emt 0:00:55]} Qh8+ {[%emt 0:00:25]} 75. Rh4 {[%emt 0:00:01]} Qg7 {[%emt 0:00:18]} 76. Rf4+ {[%emt 0:00:11]} Ke5 {[%emt 0:00:15]} 77. Re4+ {[%emt 0:00:07]} Kf5 {[%emt 0:00:40]} 78. Rh4 {[%emt 0:00:29]} Ke5 {[%emt 0:00:36]} 79. Rh5+ {[%emt 0:00:48]} Kf6 {[%emt 0:00:24]} 80. Kh3 {[%emt 0:01:24]} Qd7+ {[%emt 0:00:19]} 81. g4 {[%emt 0:00:41]} Qd3+ {[%emt 0:00:24]} 82. Kh4 {[%emt 0:00:24]} Qe3 {[%emt 0:00:08]} 83. Rf5+ {[%emt 0:00:25]} Kg6 {[%emt 0:00:11]} 84. Rf3 {[%emt 0:00:20]} Qe1+ {[%emt 0:00:12]} 85. Kh3 {[%emt 0:00:39]} Kg5 {[%emt 0:00:17]} 86. Rf5+ {[%emt 0:00:11]} 1/2-1/2

[Event "FAI-ch Candidates 2022"]
[Site "Eidi"]
[Date "2022.04.12"]
[Round "4.1"]
[White "Gregersen, Hedin"]
[Black "Berg, Margar M."]
[Result "1-0"]
[ECO "B07"]
[WhiteElo "1859"]
[BlackElo "2005"]
[Annotator "RC"]
[PlyCount "44"]
[EventDate "2022.04.10"]
[EventType "tourn"]
[EventCountry "FAI"]
[SourceTitle "playchess.com"]
[Source "ChessBase"]
[SourceQuality "1"]
[TimeControl "40/5400+30:1800+30"]

1. e4 {[%emt 0:00:03]} g6 {[%emt 0:00:54]} 2. g3 {[%emt 0:00:33]} d6 {[%emt 0:01:47]} 3. Bg2 {[%emt 0:00:40]} Bg7 {[%emt 0:01:47]} 4. Nf3 {[%emt 0:00:19]} Nc6 {[%emt 0:00:47]} 5. O-O {[%emt 0:00:18]} e5 {[%emt 0:00:36]} 6. c3 {[%emt 0:02:52]} Bg4 {[%emt 0:02:08]} 7. h3 {[%emt 0:00:26]} Bxf3 {[%emt 0:07:56]} 8. Qxf3 {[%emt 0:00:29]} Qd7 {[%emt 0:03:23]} 9. d3 {[%emt 0:02:48]} O-O-O {[%emt 0:04:34]} 10. b4 {[%emt 0:00:30]} f6 {[%emt 0:05:35]} 11. b5 {[%emt 0:01:06]} Nb8 {[%emt 0:04:35]} 12. a4 {[%emt 0:02:36]} g5 {[%emt 0:00:24]} 13. Qe3 {[%emt 0:06:11]} b6 {[%emt 0:04:06]} 14. a5 {[%emt 0:06:29]} h5 {[%emt 0:02:39]} 15. c4 {[%emt 0:03:55]} Bh6 {[%emt 0:00:45]} 16. Qe2 {[%emt 0:02:52]} Ne7 {[%emt 0:03:09]} 17. Ra3 {[%emt 0:05:23]} Ng6 {[%emt 0:11:30]} 18. axb6 {[%emt 0:03:10]} axb6 {[%emt 0:00:28]} 19. Ra7 {[%emt 0:08:14]} Rdg8 {[%emt 0:16:34]} 20. Nc3 {[%emt 0:06:22]} Rg7 {[%emt 0:05:42]} 21. Nd5 {[%emt 0:01:33]} Qe6 {[%emt 0:00:41]} 22. Qxh5 {[%emt 0:04:11]} Nf4 {[%emt 0:05:38]} 1-0

[Event "FAI-ch Candidates 2022"]
[Site "Eidi"]
[Date "2022.04.12"]
[Round "4.3"]
[White "Hansen, Herluf"]
[Black "Hansen Eliasen, Bogi"]
[Result "1-0"]
[ECO "A80"]
[WhiteElo "1982"]
[BlackElo "1841"]
[Annotator "RC"]
[PlyCount "77"]
[EventDate "2022.04.10"]
[EventType "tourn"]
[EventCountry "FAI"]
[SourceTitle "playchess.com"]
[Source "ChessBase"]
[SourceQuality "1"]
[TimeControl "40/5400+30:1800+30"]

1. d4 {[%emt 0:02:19]} f5 {[%emt 0:00:10]} 2. Nc3 {[%emt 0:00:36]} Nf6 {[%emt 0:00:24]} 3. Bg5 {[%emt 0:00:30]} d5 {[%emt 0:00:20]} 4. Bxf6 {[%emt 0:04:04]} exf6 {[%emt 0:01:11]} 5. e3 {[%emt 0:00:23]} Be6 {[%emt 0:01:00]} 6. Bd3 {[%emt 0:01:01]} Nc6 {[%emt 0:08:43]} 7. Nge2 {[%emt 0:07:28]} Bd6 {[%emt 0:13:51]} 8. Qd2 {[%emt 0:07:17]} a6 {[%emt 0:08:50]} 9. O-O-O {[%emt 0:07:59]} Nb4 {[%emt 0:03:27]} 10. Kb1 {[%emt 0:01:23]} Nxd3 {[%emt 0:01:15]} 11. Qxd3 {[%emt 0:01:47]} b5 {[%emt 0:12:40]} 12. Nf4 {[%emt 0:08:05]} Bxf4 {[%emt 0:02:11]} 13. exf4 {[%emt 0:00:12]} Qd7 {[%emt 0:01:48]} 14. Ne2 {[%emt 0:04:38]} O-O {[%emt 0:03:34]} 15. Nc1 {[%emt 0:02:17]} Qd6 {[%emt 0:02:29]} 16. Qf3 {[%emt 0:03:51]} c5 {[%emt 0:01:08]} 17. dxc5 {[%emt 0:00:34]} Qxc5 {[%emt 0:00:10]} 18. Nb3 {[%emt 0:00:13]} Qc4 {[%emt 0:09:03]} 19. Nd4 {[%emt 0:01:47]} Bd7 {[%emt 0:01:52]} 20. Qd3 {[%emt 0:04:06]} g6 {[%emt 0:01:39]} 21. Rhe1 {[%emt 0:03:27]} Qxd3 {[%emt 0:00:51]} 22. cxd3 {[%emt 0:00:12]} Rfe8 {[%emt 0:00:31]} 23. Kc2 {[%emt 0:08:32]} Rxe1 {[%emt 0:00:22]} 24. Rxe1 {[%emt 0:00:05]} Kf7 {[%emt 0:00:12]} 25. Kc3 {[%emt 0:00:20]} Rc8+ {[%emt 0:03:36]} 26. Kb4 {[%emt 0:01:29]} a5+ {[%emt 0:05:56]} 27. Kxa5 {[%emt 0:02:43]} Ra8+ {[%emt 0:00:12]} 28. Kb6 {[%emt 0:00:22]} Rxa2 {[%emt 0:00:10]} 29. Re2 {[%emt 0:00:14]} Ra4 {[%emt 0:01:13]} 30. Kc5 {[%emt 0:00:29]} b4 {[%emt 0:07:54]} 31. Kxd5 {[%emt 0:01:18]} Ra6 {[%emt 0:00:20]} 32. Kc5 {[%emt 0:03:18]} b3 {[%emt 0:02:01]} 33. Kc4 {[%emt 0:05:16]} Rb6 {[%emt 0:00:59]} 34. Kc3 {[%emt 0:00:50]} Ba4 {[%emt 0:02:03]} 35. Re1 {[%emt 0:00:40]} Rb7 {[%emt 0:00:39]} 36. Ra1 {[%emt 0:01:30]} Rc7+ {[%emt 0:01:36]} 37. Kd2 {[%emt 0:00:11]} Bc6 {[%emt 0:01:06]} 38. Rc1 {[%emt 0:00:19]} Ke7 {[%emt 0:02:01]} 39. Rxc6 {[%emt 0:01:36]} 1-0